[Event "GER-ch Youth-ODJM 2022 A"]
[Site "Willingen"]
[Date "2022.06.09"]
[Round "7.22"]
[White "Hoffmann, Kay"]
[Black "Pick, Max"]
[Result "0-1"]
[ECO "B24"]
[WhiteElo "1607"]
[BlackElo "1841"]
[Annotator "NA RC COMBH"]
[PlyCount "100"]
[EventDate "2022.06.05"]
[EventType "swiss"]
[EventRounds "9"]
[EventCountry "GER"]
[SourceTitle "playchess.com"]
[Source "ChessBase"]
[SourceQuality "1"]
[TimeControl "40/4500+30:900+30"]

1. e4 {[%emt 0:00:00]} c5 {[%emt 0:00:00]} 2. Nc3 {[%emt 0:00:00]} Nc6 {[%emt 0:00:00]} 3. g3 {[%emt 0:00:00]} g6 {[%emt 0:00:00]} 4. Bg2 {[%emt 0:00:00]} Bg7 {[%emt 0:00:00]} 5. Nge2 {[%emt 0:00:00]} Nf6 {[%emt 0:00:00]} 6. O-O {[%emt 0:00:00]} d6 {[%emt 0:00:00]} 7. d3 {[%emt 0:00:00]} O-O {[%emt 0:00:00]} 8. h3 {[%emt 0:00:00]} Ne8 {[%emt 0:00:00]} 9. Be3 {[%emt 0:00:00]} Nd4 {[%emt 0:00:00]} 10. Qd2 {[%emt 0:00:00]} e5 {[%emt 0:00:00]} 11. Nd5 {[%emt 0:00:00]} Nc7 {[%emt 0:18:12]} 12. Nxd4 {[%emt 0:00:00]} Nxd5 {[%emt 0:09:18]} 13. exd5 {[%emt 0:00:00]} cxd4 {[%emt 0:01:08]} 14. Bh6 {[%emt 0:00:00]} f5 {[%emt 0:04:35]} 15. Bxg7 {[%emt 0:00:48]} Kxg7 {[%emt 0:02:44]} 16. f4 {[%emt 0:05:40]} Qb6 {[%emt 0:02:31]} 17. fxe5 {[%emt 0:06:14]} dxe5 {[%emt 0:00:52]} 18. Qg5 {[%emt 0:01:47]} Qf6 {[%emt 0:03:11]} 19. Qxf6+ {[%emt 0:01:13]} Kxf6 {[%emt 0:00:16]} 20. c4 {[%emt 0:03:09]} Bd7 {[%emt 0:07:53]} 21. Rac1 {[%emt 0:02:10]} Rac8 {[%emt 0:01:17]} 22. b4 {[%emt 0:03:36]} b6 {[%emt 0:06:23]} 23. Rf2 {[%emt 0:02:14]} h5 {[%emt 0:04:28]} 24. c5 {[%emt 0:01:37]} Bb5 {[%emt 0:00:50]} 25. Rd2 {[%emt 0:02:56]} Rf7 {[%emt 0:09:57]} 26. c6 {[%emt 0:07:07]} Ke7 {[%emt 0:01:21]} 27. Ra1 {[%emt 0:06:10]} Ba4 {[%emt 0:03:03]} 28. Rb1 {[%emt 0:00:47]} Bb5 {[%emt 0:01:20]} 29. a4 {[%emt 0:06:06]} Bxa4 {[%emt 0:00:26]} 30. b5 {[%emt 0:00:11]} a6 {[%emt 0:01:43]} 31. bxa6 {[%emt 0:00:07]} b5 {[%emt 0:00:08]} 32. Ra2 {[%emt 0:00:22]} Kd6 {[%emt 0:00:26]} 33. Bf3 {[%emt 0:21:13]} Ra7 {[%emt 0:01:28]} 34. g4 {[%emt 0:01:12]} hxg4 {[%emt 0:07:16]} 35. hxg4 {[%emt 0:00:06]} Rh8 {[%emt 0:00:37]} 36. gxf5 {[%emt 0:01:49]} gxf5 {[%emt 0:00:08]} 37. Bd1 {[%emt 0:01:03]} Rxa6 {[%emt 0:01:46]} 38. Bxa4 {[%emt 0:01:38]} Rxa4 {[%emt 0:00:38]} 39. Rc2 {[%emt 0:01:09]} b4 {[%emt 0:00:25]} 40. c7 {[%emt 0:00:36]} Rc8 {[%emt 0:00:18]} 41. Rbc1 {[%emt 0:16:19]} e4 {[%emt 0:00:00]} 42. Rc6+ {[%emt 0:00:00]} Kd7 {[%emt 0:00:00]} 43. dxe4 {[%emt 0:00:00]} fxe4 {[%emt 0:00:00]} 44. R6c4 {[%emt 0:00:00]} d3 {[%emt 0:03:27]} 45. Rxe4 {[%emt 0:00:00]} Rxc7 {[%emt 0:00:14]} 46. Rxc7+ {[%emt 0:00:00]} Kxc7 {[%emt 0:00:04]} 47. Kf2 {[%emt 0:00:00]} Ra2+ {[%emt 0:01:33]} 48. Ke1 {[%emt 0:00:00]} b3 {[%emt 0:00:31]} 49. d6+ {[%emt 0:00:00]} Kxd6 {[%emt 0:02:26]} 50. Rd4+ {[%emt 0:00:00]} Kc5 {[%emt 0:00:15]} 0-1

[Event "GER-ch Youth-ODJM 2022 A"]
[Site "Willingen"]
[Date "2022.06.10"]
[Round "8.1"]
[White "Direk, Oguzhan"]
[Black "Roth, Jonas"]
[Result "0-1"]
[ECO "A45"]
[WhiteElo "1020"]
[BlackElo "1239"]
[Annotator "NA RC COMBH"]
[PlyCount "78"]
[EventDate "2022.06.05"]
[EventType "swiss"]
[EventRounds "9"]
[EventCountry "GER"]
[SourceTitle "playchess.com"]
[Source "ChessBase"]
[SourceQuality "1"]
[TimeControl "40/4500+30:900+30"]

1. d4 {[%emt 0:00:00]} Nf6 {[%emt 0:00:00]} 2. Nc3 d5 {[%emt 0:00:00]} 3. Bf4 {[%emt 0:00:00]} c5 {[%emt 0:00:00]} 4. e3 {[%emt 0:00:00]} Nc6 {[%emt 0:00:00]} 5. Nf3 {[%emt 0:00:00]} Bg4 {[%emt 0:00:00]} 6. dxc5 {[%emt 0:00:00]} e6 {[%emt 0:00:00]} 7. Bd3 {[%emt 0:00:00]} Bxc5 {[%emt 0:00:00]} 8. h3 {[%emt 0:00:00]} Bh5 {[%emt 0:00:00]} 9. e4 {[%emt 0:00:00]} Qb6 {[%emt 0:00:00]} 10. e5 {[%emt 0:00:00]} Bxf2+ 11. Kf1 {[%emt 0:00:00]} Nd7 {[%emt 0:00:00]} 12. Na4 {[%emt 0:00:00]} Qb4 {[%emt 0:00:00]} 13. Bd2 {[%emt 0:00:00]} Qxa4 {[%emt 0:00:00]} 14. Kxf2 {[%emt 0:00:00]} Ndxe5 {[%emt 0:00:53]} 15. g4 {[%emt 0:00:00]} Bg6 {[%emt 0:01:17]} 16. Bxg6 {[%emt 0:00:00]} hxg6 {[%emt 0:00:13]} 17. Nxe5 {[%emt 0:00:00]} Nxe5 {[%emt 0:00:17]} 18. Re1 {[%emt 0:00:00]} Nc6 {[%emt 0:00:27]} 19. Bc3 {[%emt 0:00:00]} Qf4+ {[%emt 0:02:02]} 20. Kg2 {[%emt 0:00:00]} Rh7 {[%emt 0:01:05]} 21. Qd3 {[%emt 0:00:00]} O-O-O {[%emt 0:00:57]} 22. a4 {[%emt 0:00:00]} Rdh8 {[%emt 0:01:10]} 23. a5 {[%emt 0:00:00]} a6 {[%emt 0:00:21]} 24. Rab1 {[%emt 0:00:00]} Qh6 {[%emt 0:01:31]} 25. Rh1 {[%emt 0:00:00]} Qf4 {[%emt 0:00:56]} 26. Rhe1 {[%emt 0:00:00]} Qc4 {[%emt 0:01:28]} 27. Qxc4 {[%emt 0:00:00]} dxc4 {[%emt 0:00:07]} 28. Re3 {[%emt 0:00:00]} Rd8 {[%emt 0:00:37]} 29. Rf1 {[%emt 0:00:02]} Rd7 {[%emt 0:00:56]} 30. Re4 {[%emt 0:00:59]} e5 {[%emt 0:03:17]} 31. Rxc4 {[%emt 0:00:27]} f6 {[%emt 0:00:17]} 32. g5 {[%emt 0:00:42]} Rd6 {[%emt 0:01:56]} 33. Kg3 {[%emt 0:01:23]} Kd7 {[%emt 0:00:14]} 34. h4 {[%emt 0:00:31]} Ke6 {[%emt 0:00:21]} 35. gxf6 {[%emt 0:01:14]} gxf6 {[%emt 0:00:13]} 36. Bb4 {[%emt 0:00:22]} Rd5 {[%emt 0:00:28]} 37. Bc3 {[%emt 0:00:55]} Nxa5 {[%emt 0:00:17]} 38. Bxa5 {[%emt 0:00:02]} Rxa5 {[%emt 0:00:09]} 39. Rc7 {[%emt 0:00:08]} Rxc7 0-1

[Event "GER-ch Youth-ODJM 2022 A"]
[Site "Willingen"]
[Date "2022.06.10"]
[Round "8.2"]
[White "Jansen, Malte"]
[Black "Ollhoff, Hannes"]
[Result "1/2-1/2"]
[ECO "C01"]
[WhiteElo "1391"]
[BlackElo "1235"]
[Annotator "NA RC COMBH"]
[PlyCount "100"]
[EventDate "2022.06.05"]
[EventType "swiss"]
[EventRounds "9"]
[EventCountry "GER"]
[SourceTitle "playchess.com"]
[Source "ChessBase"]
[SourceQuality "1"]
[TimeControl "40/4500+30:900+30"]

1. e4 {[%emt 0:00:00]} e6 {[%emt 0:00:00]} 2. d4 {[%emt 0:00:00]} d5 {[%emt 0:00:00]} 3. exd5 {[%emt 0:00:00]} exd5 {[%emt 0:00:00]} 4. Bd3 {[%emt 0:00:00]} Nc6 {[%emt 0:00:00]} 5. Nf3 {[%emt 0:00:00]} Bd6 {[%emt 0:00:00]} 6. O-O {[%emt 0:00:00]} Bg4 {[%emt 0:00:00]} 7. c3 {[%emt 0:00:00]} Nge7 {[%emt 0:00:00]} 8. Bg5 {[%emt 0:00:00]} f6 {[%emt 0:00:00]} 9. Bh4 {[%emt 0:00:00]} Qd7 {[%emt 0:00:00]} 10. Nbd2 {[%emt 0:00:00]} O-O-O {[%emt 0:00:00]} 11. Qc2 {[%emt 0:00:00]} g5 {[%emt 0:00:00]} 12. Bg3 {[%emt 0:00:00]} Bxg3 {[%emt 0:00:00]} 13. fxg3 {[%emt 0:00:00]} h5 {[%emt 0:02:36]} 14. Nb3 {[%emt 0:03:44]} Bxf3 {[%emt 0:05:19]} 15. Rxf3 {[%emt 0:01:26]} Rdf8 {[%emt 0:08:38]} 16. Raf1 {[%emt 0:03:12]} Qd6 {[%emt 0:02:56]} 17. Qf2 {[%emt 0:08:17]} Rh6 {[%emt 0:03:51]} 18. Nc1 {[%emt 0:08:12]} h4 {[%emt 0:05:33]} 19. Ne2 {[%emt 0:03:38]} Kb8 {[%emt 0:07:53]} 20. gxh4 {[%emt 0:03:05]} Rxh4 {[%emt 0:01:50]} 21. Qg3 {[%emt 0:00:48]} Qxg3 {[%emt 0:04:54]} 22. Nxg3 {[%emt 0:01:22]} Rh6 {[%emt 0:03:30]} 23. Nf5 {[%emt 0:01:34]} Nxf5 {[%emt 0:02:24]} 24. Rxf5 {[%emt 0:00:39]} Ne7 {[%emt 0:00:49]} 25. Rxg5 {[%emt 0:01:47]} Rfh8 {[%emt 0:02:34]} 26. Rg7 {[%emt 0:01:34]} Ng8 {[%emt 0:01:31]} 27. Rd7 {[%emt 0:01:15]} c6 {[%emt 0:00:35]} 28. h3 {[%emt 0:01:01]} Rh5 {[%emt 0:02:03]} 29. Rg7 {[%emt 0:02:09]} a6 {[%emt 0:02:32]} 30. Bf5 {[%emt 0:01:25]} Rg5 {[%emt 0:01:50]} 31. Rf7 {[%emt 0:03:53]} Rh6 {[%emt 0:05:06]} 32. Rf8+ {[%emt 0:01:34]} Ka7 {[%emt 0:00:24]} 33. Be6 {[%emt 0:00:20]} Rhg6 {[%emt 0:02:46]} 34. Rf2 {[%emt 0:02:17]} Ne7 {[%emt 0:02:04]} 35. R8xf6 {[%emt 0:00:32]} Rxg2+ {[%emt 0:01:36]} 36. Rxg2 {[%emt 0:00:46]} Rxf6 {[%emt 0:00:08]} 37. Bg4 {[%emt 0:00:35]} Rh6 {[%emt 0:01:33]} 38. Re2 {[%emt 0:00:42]} Ng8 {[%emt 0:01:41]} 39. Kg2 {[%emt 0:02:35]} Nf6 {[%emt 0:01:03]} 40. Kf3 {[%emt 0:01:44]} Kb6 {[%emt 0:01:39]} 41. Re7 {[%emt 0:17:22]} Ne4 {[%emt 0:18:17]} 42. Bc8 {[%emt 0:02:01]} Nd6 {[%emt 0:00:24]} 43. Bg4 {[%emt 0:02:23]} Rf6+ {[%emt 0:01:29]} 44. Kg3 {[%emt 0:00:50]} Ne4+ {[%emt 0:00:30]} 45. Kh4 {[%emt 0:02:25]} Rh6+ {[%emt 0:04:30]} 46. Bh5 {[%emt 0:00:10]} Nf6 {[%emt 0:00:13]} 47. Re5 {[%emt 0:00:47]} a5 {[%emt 0:02:06]} 48. Kg5 {[%emt 0:00:20]} Rxh5+ {[%emt 0:00:21]} 49. Kxf6 {[%emt 0:00:10]} Rxh3 {[%emt 0:00:07]} 50. Re2 {[%emt 0:00:31]} Rh7 {[%emt 0:00:42]} 1/2-1/2

[Event "GER-ch Youth-ODJM 2022 A"]
[Site "Willingen"]
[Date "2022.06.10"]
[Round "8.3"]
[White "Fröhlich, Niklas"]
[Black "Hapke, Marvin"]
[Result "1-0"]
[ECO "C54"]
[WhiteElo "1242"]
[BlackElo "1262"]
[Annotator "NA RC COMBH"]
[PlyCount "98"]
[EventDate "2022.06.05"]
[EventType "swiss"]
[EventRounds "9"]
[EventCountry "GER"]
[SourceTitle "playchess.com"]
[Source "ChessBase"]
[SourceQuality "1"]
[TimeControl "40/4500+30:900+30"]

1. e4 {[%emt 0:00:00]} e5 {[%emt 0:00:00]} 2. Nf3 {[%emt 0:00:00]} Nc6 {[%emt 0:00:00]} 3. Bc4 {[%emt 0:00:00]} Bc5 {[%emt 0:00:00]} 4. c3 {[%emt 0:00:00]} Nf6 {[%emt 0:00:00]} 5. d4 {[%emt 0:00:00]} exd4 {[%emt 0:00:00]} 6. cxd4 {[%emt 0:00:00]} Bb4+ {[%emt 0:00:00]} 7. Nc3 {[%emt 0:00:00]} Nxe4 {[%emt 0:00:00]} 8. O-O {[%emt 0:00:00]} Bxc3 {[%emt 0:00:00]} 9. bxc3 {[%emt 0:00:00]} O-O {[%emt 0:00:00]} 10. d5 {[%emt 0:00:00]} Ne7 {[%emt 0:00:00]} 11. Bg5 {[%emt 0:10:44]} Nxg5 {[%emt 0:00:00]} 12. Nxg5 {[%emt 0:00:10]} d6 {[%emt 0:00:23]} 13. Qh5 {[%emt 0:08:08]} Bf5 {[%emt 0:00:46]} 14. g4 {[%emt 0:01:26]} Bg6 {[%emt 0:01:09]} 15. Qh3 {[%emt 0:02:39]} f5 {[%emt 0:06:14]} 16. Ne6 {[%emt 0:02:40]} fxg4 {[%emt 0:01:58]} 17. Qg3 {[%emt 0:01:03]} Nf5 {[%emt 0:01:57]} 18. Qxg4 {[%emt 0:01:27]} Nh6 {[%emt 0:01:57]} 19. Qg2 {[%emt 0:05:05]} Qf6 {[%emt 0:01:50]} 20. Nxf8 {[%emt 0:01:19]} Rxf8 {[%emt 0:00:10]} 21. Rac1 {[%emt 0:02:30]} Nf5 {[%emt 0:01:46]} 22. Be2 {[%emt 0:10:09]} Nh4 {[%emt 0:08:42]} 23. Qg3 {[%emt 0:04:10]} Nf3+ {[%emt 0:01:25]} 24. Bxf3 {[%emt 0:00:34]} Qxf3 {[%emt 0:00:04]} 25. Qxf3 {[%emt 0:00:07]} Rxf3 {[%emt 0:00:10]} 26. Rfe1 {[%emt 0:00:39]} Rf6 {[%emt 0:06:07]} 27. Re6 {[%emt 0:06:08]} Rf4 {[%emt 0:04:45]} 28. Re7 {[%emt 0:08:50]} Bd3 {[%emt 0:02:27]} 29. Rce1 {[%emt 0:04:05]} Bc4 {[%emt 0:05:59]} 30. R1e4 {[%emt 0:03:13]} Rxe4 {[%emt 0:00:21]} 31. Rxe4 {[%emt 0:00:04]} Bxd5 {[%emt 0:00:10]} 32. Re7 {[%emt 0:00:08]} c5 {[%emt 0:00:31]} 33. a3 {[%emt 0:00:18]} Bc6 {[%emt 0:00:45]} 34. f4 {[%emt 0:01:19]} a5 {[%emt 0:00:33]} 35. Kf2 {[%emt 0:00:13]} Kf8 {[%emt 0:00:32]} 36. Rc7 {[%emt 0:00:14]} d5 {[%emt 0:01:03]} 37. Ke3 {[%emt 0:02:16]} h6 {[%emt 0:02:08]} 38. c4 {[%emt 0:02:12]} d4+ {[%emt 0:02:04]} 39. Kd3 {[%emt 0:00:36]} g6 {[%emt 0:02:54]} 40. h4 {[%emt 0:00:30]} h5 {[%emt 0:03:31]} 41. Kd2 {[%emt 0:15:27]} Kg8 {[%emt 0:18:01]} 42. Re7 {[%emt 0:01:47]} Bf3 {[%emt 0:15:50]} 43. Re5 {[%emt 0:00:59]} b6 {[%emt 0:00:17]} 44. Re6 {[%emt 0:01:06]} b5 {[%emt 0:00:04]} 45. cxb5 {[%emt 0:00:34]} c4 {[%emt 0:00:25]} 46. b6 {[%emt 0:01:09]} c3+ {[%emt 0:05:39]} 47. Kd3 {[%emt 0:01:22]} Kf7 {[%emt 0:00:57]} 48. Rd6 {[%emt 0:01:19]} Be4+ {[%emt 0:03:24]} 49. Kxe4 {[%emt 0:00:22]} c2 {[%emt 0:00:10]} 1-0

[Event "GER-ch Youth-ODJM 2022 A"]
[Site "Willingen"]
[Date "2022.06.10"]
[Round "8.4"]
[White "Akcapinar, Timur"]
[Black "Schöne, Finn"]
[Result "1-0"]
[ECO "B21"]
[WhiteElo "1278"]
[BlackElo "1110"]
[Annotator "NA RC COMBH"]
[PlyCount "113"]
[EventDate "2022.06.05"]
[EventType "swiss"]
[EventRounds "9"]
[EventCountry "GER"]
[SourceTitle "playchess.com"]
[Source "ChessBase"]
[SourceQuality "1"]
[TimeControl "40/4500+30:900+30"]

1. e4 {[%emt 0:00:00]} c5 {[%emt 0:00:00]} 2. d4 {[%emt 0:00:00]} cxd4 {[%emt 0:00:00]} 3. c3 {[%emt 0:00:00]} dxc3 {[%emt 0:00:00]} 4. Nxc3 {[%emt 0:00:00]} e6 {[%emt 0:00:00]} 5. Nf3 {[%emt 0:00:00]} Nc6 {[%emt 0:00:00]} 6. Bc4 Bc5 {[%emt 0:00:00]} 7. O-O {[%emt 0:00:00]} a6 {[%emt 0:00:00]} 8. Bb3 {[%emt 0:00:00]} Nge7 {[%emt 0:00:00]} 9. Qe2 {[%emt 0:00:00]} Qc7 {[%emt 0:00:40]} 10. Be3 {[%emt 0:00:00]} Bxe3 {[%emt 0:04:29]} 11. fxe3 {[%emt 0:00:37]} Ng6 {[%emt 0:04:41]} 12. Ng5 {[%emt 0:03:26]} Nge5 {[%emt 0:05:53]} 13. Qh5 {[%emt 0:01:28]} d6 {[%emt 0:02:52]} 14. Nxh7 {[%emt 0:01:59]} Bd7 {[%emt 0:09:03]} 15. Nf6+ {[%emt 0:01:19]} Ke7 {[%emt 0:00:17]} 16. Qg5 {[%emt 0:00:36]} Kf8 {[%emt 0:01:22]} 17. Nxd7+ {[%emt 0:01:40]} Qxd7 {[%emt 0:00:49]} 18. Na4 {[%emt 0:01:16]} Rh6 {[%emt 0:13:02]} 19. Nb6 {[%emt 0:01:17]} Qd8 {[%emt 0:00:02]} 20. Qxd8+ {[%emt 0:00:11]} Rxd8 {[%emt 0:00:01]} 21. Nc4 {[%emt 0:06:37]} Ke7 {[%emt 0:01:50]} 22. Rad1 {[%emt 0:03:38]} b5 {[%emt 0:01:02]} 23. Nxe5 {[%emt 0:02:00]} Nxe5 {[%emt 0:00:24]} 24. h3 {[%emt 0:00:18]} g5 {[%emt 0:00:21]} 25. Rc1 {[%emt 0:02:18]} Rdh8 {[%emt 0:01:44]} 26. Rc7+ {[%emt 0:01:31]} Kd8 {[%emt 0:02:09]} 27. Ra7 {[%emt 0:03:45]} g4 {[%emt 0:02:41]} 28. Ra8+ {[%emt 0:00:09]} Kd7 {[%emt 0:00:14]} 29. Rxh8 {[%emt 0:00:05]} Rxh8 30. hxg4 {[%emt 0:00:46]} Nxg4 {[%emt 0:00:16]} 31. Rxf7+ {[%emt 0:00:05]} Ke8 {[%emt 0:00:18]} 32. Rf3 {[%emt 0:00:17]} Ke7 {[%emt 0:00:21]} 33. Rg3 {[%emt 0:01:25]} Rh4 {[%emt 0:00:54]} 34. Bc2 {[%emt 0:00:45]} Kf6 {[%emt 0:01:01]} 35. Rf3+ {[%emt 0:03:36]} Ke5 {[%emt 0:00:42]} 36. Rf4 {[%emt 0:00:28]} d5 37. exd5 {[%emt 0:01:49]} exd5 {[%emt 0:01:20]} 38. Bf5 {[%emt 0:01:13]} d4 {[%emt 0:06:16]} 39. Rxg4 {[%emt 0:00:43]} Rh5 {[%emt 0:00:24]} 40. Bd3 {[%emt 0:01:07]} dxe3 {[%emt 0:00:18]} 41. Re4+ {[%emt 0:15:10]} Kd5 {[%emt 0:15:50]} 42. Rxe3 {[%emt 0:00:35]} Kd4 43. Rf3 {[%emt 0:00:32]} a5 {[%emt 0:01:10]} 44. Be2 {[%emt 0:00:10]} Re5 {[%emt 0:00:09]} 45. Bf1 {[%emt 0:00:47]} Rc5 {[%emt 0:00:49]} 46. Rd3+ {[%emt 0:01:28]} Ke4 {[%emt 0:00:11]} 47. Rc3 {[%emt 0:00:46]} Rd5 {[%emt 0:00:17]} 48. Rb3 {[%emt 0:00:20]} b4 {[%emt 0:00:05]} 49. a3 {[%emt 0:00:30]} bxa3 {[%emt 0:00:47]} 50. Rxa3 {[%emt 0:00:30]} Ke5 {[%emt 0:01:10]} 51. Rd3 {[%emt 0:01:07]} Rc5 {[%emt 0:00:30]} 52. Rh3 {[%emt 0:00:30]} Rc2 {[%emt 0:00:17]} 53. Rh5+ {[%emt 0:00:27]} Kd4 {[%emt 0:00:13]} 54. Rxa5 {[%emt 0:00:10]} Rxb2 {[%emt 0:00:11]} 55. Ra8 {[%emt 0:00:21]} Ke4 {[%emt 0:00:44]} 56. Rg8 {[%emt 0:00:13]} Rb5 {[%emt 0:00:31]} 57. Bxb5 1-0

[Event "GER-ch Youth-ODJM 2022 A"]
[Site "Willingen"]
[Date "2022.06.10"]
[Round "8.5"]
[White "Pinto, Phil B"]
[Black "Heß, Maxim"]
[Result "0-1"]
[ECO "D00"]
[WhiteElo "1582"]
[BlackElo "1146"]
[Annotator "NA RC COMBH"]
[PlyCount "62"]
[EventDate "2022.06.05"]
[EventType "swiss"]
[EventRounds "9"]
[EventCountry "GER"]
[SourceTitle "playchess.com"]
[Source "ChessBase"]
[SourceQuality "1"]
[TimeControl "40/4500+30:900+30"]

1. d4 {[%emt 0:00:00]} d5 {[%emt 0:00:00]} 2. Nc3 {[%emt 0:00:00]} c5 {[%emt 0:00:00]} 3. dxc5 {[%emt 0:00:00]} e6 {[%emt 0:00:00]} 4. Bf4 {[%emt 0:00:00]} Nc6 {[%emt 0:00:00]} 5. Nf3 {[%emt 0:05:15]} Bxc5 {[%emt 0:00:00]} 6. e3 {[%emt 0:06:20]} a6 {[%emt 0:00:03]} 7. Bd3 {[%emt 0:06:56]} Qe7 {[%emt 0:07:45]} 8. a3 {[%emt 0:06:21]} b5 {[%emt 0:05:12]} 9. b4 {[%emt 0:07:46]} Bb6 {[%emt 0:00:12]} 10. O-O {[%emt 0:06:05]} Nf6 {[%emt 0:00:14]} 11. Re1 {[%emt 0:04:42]} e5 {[%emt 0:18:38]} 12. Bg5 {[%emt 0:08:15]} Be6 {[%emt 0:10:38]} 13. Be2 {[%emt 0:08:19]} Rd8 {[%emt 0:01:35]} 14. Qd2 {[%emt 0:05:34]} d4 {[%emt 0:05:18]} 15. exd4 {[%emt 0:03:37]} Nxd4 {[%emt 0:04:52]} 16. Nxd4 {[%emt 0:02:17]} Bxd4 {[%emt 0:00:07]} 17. Bd3 {[%emt 0:00:54]} Rc8 {[%emt 0:01:44]} 18. Bxf6 {[%emt 0:08:23]} gxf6 {[%emt 0:00:13]} 19. Ne4 {[%emt 0:03:34]} Bxa1 {[%emt 0:00:46]} 20. Rxa1 {[%emt 0:00:08]} f5 {[%emt 0:03:07]} 21. Ng3 {[%emt 0:00:40]} Rd8 {[%emt 0:00:17]} 22. Qe2 {[%emt 0:00:37]} e4 {[%emt 0:00:34]} 23. Bxb5+ {[%emt 0:00:38]} axb5 {[%emt 0:00:13]} 24. Qxb5+ Qd7 {[%emt 0:00:08]} 25. Qe5 {[%emt 0:00:38]} Rg8 {[%emt 0:00:30]} 26. h3 {[%emt 0:00:38]} Qe7 {[%emt 0:01:57]} 27. Qb5+ {[%emt 0:00:36]} Bd7 {[%emt 0:00:09]} 28. Qd5 {[%emt 0:00:38]} Qe6 {[%emt 0:00:40]} 29. Qc5 {[%emt 0:00:34]} f4 {[%emt 0:00:49]} 30. Nf5 {[%emt 0:00:26]} Qxf5 {[%emt 0:00:46]} 31. Qxf5 {[%emt 0:00:13]} Bxf5 0-1

[Event "GER-ch Youth-ODJM 2022 A"]
[Site "Willingen"]
[Date "2022.06.10"]
[Round "8.6"]
[White "Lau, Lars"]
[Black "Reger, Christoph"]
[Result "1/2-1/2"]
[ECO "A17"]
[WhiteElo "929"]
[BlackElo "1056"]
[Annotator "NA RC COMBH"]
[PlyCount "55"]
[EventDate "2022.06.05"]
[EventType "swiss"]
[EventRounds "9"]
[EventCountry "GER"]
[SourceTitle "playchess.com"]
[Source "ChessBase"]
[SourceQuality "1"]
[TimeControl "40/4500+30:900+30"]

1. c4 {[%emt 0:00:00]} Nf6 {[%emt 0:00:00]} 2. Nc3 {[%emt 0:00:00]} e6 {[%emt 0:00:00]} 3. e3 {[%emt 0:00:00]} d5 {[%emt 0:00:00]} 4. Nf3 {[%emt 0:00:00]} Be7 {[%emt 0:00:00]} 5. Be2 {[%emt 0:00:00]} O-O {[%emt 0:00:00]} 6. b3 {[%emt 0:00:00]} b6 {[%emt 0:00:00]} 7. Bb2 {[%emt 0:00:00]} Bb7 {[%emt 0:00:00]} 8. a3 {[%emt 0:00:00]} Nbd7 {[%emt 0:00:00]} 9. O-O {[%emt 0:00:00]} c5 {[%emt 0:00:00]} 10. cxd5 {[%emt 0:00:00]} Nxd5 {[%emt 0:00:00]} 11. Nxd5 {[%emt 0:00:00]} exd5 {[%emt 0:00:00]} 12. d4 {[%emt 0:00:00]} Nf6 {[%emt 0:00:00]} 13. Bd3 {[%emt 0:00:00]} g6 {[%emt 0:03:04]} 14. Rc1 {[%emt 0:00:00]} Rc8 {[%emt 0:02:13]} 15. Qe2 {[%emt 0:00:00]} Qc7 {[%emt 0:08:18]} 16. Ba6 {[%emt 0:00:00]} Rfd8 {[%emt 0:02:24]} 17. h3 {[%emt 0:00:56]} Bxa6 {[%emt 0:09:53]} 18. Qxa6 {[%emt 0:01:05]} Qc6 {[%emt 0:00:45]} 19. Ne5 {[%emt 0:00:12]} Qc7 {[%emt 0:01:53]} 20. dxc5 {[%emt 0:00:50]} bxc5 {[%emt 0:02:26]} 21. Nf3 {[%emt 0:00:56]} Qb6 {[%emt 0:00:53]} 22. Qxb6 {[%emt 0:01:29]} axb6 {[%emt 0:00:04]} 23. Rc2 {[%emt 0:02:37]} Ne4 {[%emt 0:02:41]} 24. Rfc1 {[%emt 0:01:51]} b5 {[%emt 0:01:57]} 25. Nd4 {[%emt 0:03:21]} Nd6 {[%emt 0:07:35]} 26. Ne2 {[%emt 0:01:34]} Nb7 {[%emt 0:05:58]} 27. Nd4 {[%emt 0:01:02]} Nd6 {[%emt 0:02:40]} 28. Ne2 1/2-1/2

[Event "GER-ch Youth-ODJM 2022 A"]
[Site "Willingen"]
[Date "2022.06.10"]
[Round "8.7"]
[White "Moissl, Felix"]
[Black "Löffelholz, Simon"]
[Result "1/2-1/2"]
[ECO "C45"]
[WhiteElo "928"]
[BlackElo "1044"]
[Annotator "NA RC COMBH"]
[PlyCount "47"]
[EventDate "2022.06.05"]
[EventType "swiss"]
[EventRounds "9"]
[EventCountry "GER"]
[SourceTitle "playchess.com"]
[Source "ChessBase"]
[SourceQuality "1"]
[TimeControl "40/4500+30:900+30"]

1. e4 {[%emt 0:00:00]} e5 {[%emt 0:00:00]} 2. Nf3 {[%emt 0:00:00]} Nc6 {[%emt 0:00:00]} 3. d4 {[%emt 0:00:00]} exd4 {[%emt 0:00:00]} 4. Nxd4 {[%emt 0:00:00]} Bc5 {[%emt 0:00:00]} 5. Be3 {[%emt 0:00:00]} Qf6 {[%emt 0:00:00]} 6. c3 {[%emt 0:00:00]} Nge7 {[%emt 0:00:00]} 7. Nd2 {[%emt 0:00:00]} Bxd4 {[%emt 0:00:00]} 8. Bxd4 {[%emt 0:00:00]} Nxd4 {[%emt 0:00:00]} 9. cxd4 {[%emt 0:00:00]} Qxd4 {[%emt 0:00:00]} 10. Qc2 {[%emt 0:00:00]} O-O {[%emt 0:00:00]} 11. Bd3 {[%emt 0:00:00]} c6 {[%emt 0:00:00]} 12. Nf3 {[%emt 0:00:00]} Qb6 {[%emt 0:00:00]} 13. O-O {[%emt 0:00:00]} d6 {[%emt 0:00:00]} 14. e5 {[%emt 0:00:00]} Ng6 {[%emt 0:08:00]} 15. exd6 {[%emt 0:00:00]} Rd8 {[%emt 0:02:55]} 16. Rfe1 {[%emt 0:00:00]} Bd7 {[%emt 0:07:16]} 17. a3 {[%emt 0:07:28]} Re8 {[%emt 0:04:26]} 18. b4 {[%emt 0:06:08]} a5 {[%emt 0:04:20]} 19. Qc5 {[%emt 0:02:10]} Qxc5 {[%emt 0:05:30]} 20. bxc5 {[%emt 0:00:32]} Nf4 {[%emt 0:02:43]} 21. Bc4 {[%emt 0:03:17]} Be6 {[%emt 0:03:54]} 22. Bxe6 {[%emt 0:02:00]} Nxe6 {[%emt 0:03:36]} 23. Rac1 {[%emt 0:02:15]} Red8 {[%emt 0:04:09]} 24. g3 {[%emt 0:04:31]} 1/2-1/2